Cogmind - Beta 15 @@@ ROGUE MODE // 2025.07.14 @ 09:05:04 Player: Rockstar Result: Destroyed by L-41 Fighter with Axe Performance ------------- Evolutions (4) 2000 Regions Visited (4) 800 Robots Destroyed (6) 30 Value Destroyed (263) 263 Prototype IDs (6) 120 Alien Tech Used (0) 0 Bonus (1128) 1128 TOTAL SCORE: 4341 Bonus ------- Pacifist 270 Follower Combat Kills 69 Registered with UFD 300 Met Optimus in HQ 500 Friendly Fire -11 Cogmind --------- Core Integrity 0/850 Matter 300/300 Energy 68/100 System Corruption 8% Temperature Cool (0) Movement Core (100) Ox1 Location -6/Factory Parts ------- > --- POWER (1) -------- (None) > --- PROPULSION (2) --- (None) > --- UTILITY (10) ----- Small Storage Unit Advanced Signal Interpreter Improved Terrain Scan Processor Targeting Computer > --- WEAPON (2) ------- (None) > --- INVENTORY (8) ---- Light Fission Core Peak State ------------ > --- POWER ------------ Light Angular Momentum Engine > --- PROPULSION ------- Compact Wheel Compact Wheel > --- UTILITY ---------- Improved Heat Sink Small Storage Unit Improved Trap Scanner Sensor Array Advanced Signal Interpreter Improved Terrain Scanner Improved Terrain Scan Processor 0b10 Decoder Chip [Scout] Targeting Computer EM Disruption Field > --- WEAPON ----------- Assault Rifle Assault Rifle > --- INVENTORY -------- Ion Engine Ion Engine Ion Engine Phase Cannon Phase Cannon Phase Cannon Phase Cannon Mining Laser [Rating: 42] Favorites ----------- Power Ion Engine Engine Ion Engine Propulsion Compact Wheel Leg Flexi-carbon Leg Wheel Compact Wheel Utility Small Storage Unit Device Sensor Array Storage Small Storage Unit Processor Signal Interpreter Weapon Assault Rifle Energy Cannon Phase Cannon Ballistic Gun Assault Rifle Special Weapon Mining Laser Build | -11 -10 -10 -9 -6 ------- Run | Yrd Mat Sub Scr Fac Slots Evolved 8 | . . . . 8 Power . | . . . . . Propulsion . | . . . . . Utility 8 | . . . . 8 Weapon . | . . . . . Parts Attached 30 | 6 3 . 1 20 Power 5 | 1 . . . 4 Engine 5 | 1 . . . 4 Core . | . . . . . Reactor . | . . . . . Propulsion 3 | 2 . . . 1 Treads . | . . . . . Leg 1 | . . . . 1 Wheel 2 | 2 . . . . Hover . | . . . . . Flight . | . . . . . Utility 13 | 1 1 . 1 10 Device 6 | . . . . 6 Storage 1 | 1 . . . . Processor 6 | . 1 . 1 4 Hackware . | . . . . . Protection . | . . . . . Artifact . | . . . . . Weapon 9 | 2 2 . . 5 Energy Gun . | . . . . . Energy Cannon 4 | . . . . 4 Ballistic Gun 4 | 2 1 . . 1 Ballistic Cannon . | . . . . . Launcher . | . . . . . Special Weapon 1 | . 1 . . . Impact Weapon . | . . . . . Slashing Weapon . | . . . . . Piercing Weapon . | . . . . . Special Melee Weapon . | . . . . . Unidentified Prototypes . | . . . . . Parts Lost 23 | . . . . 23 Power 5 | . . . . 5 Propulsion 3 | . . . . 3 Utility 8 | . . . . 8 Weapon 7 | . . . . 7 Highest Loss Streak 23 | . . . . 23 To Critical Strikes 1 | . . . . 1 Average Backups 6 | 1 6 8 7 5 Power 1 | . 1 2 2 2 Propulsion . | . . . . . Utility 1 | . 1 3 2 . Weapon 2 | . 2 3 3 3 Tool/Special . | . . . . . Unused Backups 6 | . 6 . . . Power 1 | . 1 . . . Propulsion . | . . . . . Utility 1 | . 1 . . . Weapon 4 | . 4 . . . Tool/Special . | . . . . . Average Slot Usage (%) 93 | . 97 100 100 71 Engine 12 | . 14 14 14 4 Wheel 24 | . 28 28 28 7 Device 3 | . . . . 16 Storage 12 | . 14 14 14 6 Processor 14 | . 11 14 14 22 Ballistic Gun 24 | . 27 28 28 7 Peak Build Rating 42 | 6 8 8 12 42 Average Rating 11 | 5 7 8 9 30 On Entrance 6 | . 6 8 8 12 Naked Turns . | . . . . . Heaviest Build 28 | 13 14 14 14 28 Greatest Support 32 | 32 32 32 32 32 Greatest Overweight (x) 9 | . . . . 9 Average Overweight (x) . | . . . . . Largest Inventory Capacity 8 | 8 8 8 8 8 Average Capacity 7 | 7 8 8 8 8 Most Carried 8 | 2 8 8 8 8 Average Carried 6 | . 6 8 7 5 Final Capacity 8 | 8 8 8 8 8 Final Carried 8 | 2 8 8 8 1 Class Distribution -------------------- 94% | Mutant 5% | Skirmisher Dominant Class ---------------- Mutant | -10/Materials Mutant | -10/Subcaves Mutant | -9/Scraptown Mutant | -6/Factory Resources | -11 -10 -10 -9 -6 ----------- Run | Yrd Mat Sub Scr Fac Matter Collected 471 | 228 82 . . 161 Remotely . | . . . . . Salvage Created 247 | . . . . 247 Parts 12 | . . . . 12 Haulers Intercepted . | . . . . . Recyclers Shooed . | . . . . . Parts Field Recycled . | . . . . . Retrieved Matter . | . . . . . Parts Self-Destructed 5 | . . 5 . . Prevented . | . . . . . Kills | -11 -10 -10 -9 -6 ------- Run | Yrd Mat Sub Scr Fac Combat Hostiles Destroyed 5 | . . . . 5 Guns 1 | . . . . 1 Cannons 4 | . . . . 4 Classes Destroyed 3 | . . . . 3 Worker 1 | . . . . 1 Swarmer 2 | . . . . 2 Hunter 3 | . . . . 3 Best Kill Streak 3 | . . . . 3 Combat Bots Only 2 | . . . . 2 Max Kills in Single Turn 2 | . . . . 2 Gunslinging . | . . . . . Exploded . | . . . . . Melee . | . . . . . Uniques/NPCs Destroyed . | . . . . . Combat | -11 -10 -10 -9 -6 -------- Run | Yrd Mat Sub Scr Fac Hostile Shots Fired 185 | . . . . 185 Missed 35 | . . . . 35 Hits 150 | . . . . 150 Melee 4 | . . . . 4 Projectile 146 | . . . . 146 Critical Strikes 7 | . . . . 7 Damage Taken 2573 | . . . . 2573 Core 873 | . . . . 873 Absorbed by Shields . | . . . . . Core Remaining (%) 100 | 100 . . 100 . Volleys Fired 23 | . 3 . . 20 Largest 2 | . 2 . . 2 Hottest 170 | . 100 . . 170 Shots Fired 41 | . 5 . . 36 Gun 19 | . 4 . . 15 Cannon 21 | . . . . 21 Launcher . | . . . . . Special 1 | . 1 . . . Kinetic 19 | . 4 . . 15 Thermal 22 | . 1 . . 21 Explosive . | . . . . . Electromagnetic . | . . . . . Robot Hit Streak 11 | . 2 . . 11 Robot Miss Streak 2 | . 1 . . 2 Penetration Max 1 | . . . . 1 Secondary Targets . | . . . . . Shots Hit Robots 25 | . 2 . . 23 Core Hits 11 | . 1 . . 10 Critical Kills 1 | . . . . 1 Critical Parts Destroyed . | . . . . . Critical Strikes 1 | . . . . 1 Destroy 1 | . . . . 1 Melee Attacks . | . . . . . Impact . | . . . . . Slashing . | . . . . . Piercing . | . . . . . Sneak Attacks . | . . . . . Combat Hostiles . | . . . . . Follow-up Attacks . | . . . . . Damage Inflicted 621 | . 33 . . 588 Guns 197 | . 33 . . 164 Cannons 424 | . . . . 424 Explosions . | . . . . . Melee . | . . . . . Ramming . | . . . . . Kinetic 197 | . 33 . . 164 Thermal 424 | . . . . 424 Explosive . | . . . . . Electromagnetic . | . . . . . Impact . | . . . . . Slashing . | . . . . . Piercing . | . . . . . Highest Corruption 8 | . . . . 8 Average Corruption 6 | . . . . 6 Corruption Purged . | . . . . . Corruption Blocked . | . . . . . Effects 1 | . . . . 1 Data Loss (major) 1 | . . . . 1 Overload Shots . | . . . . . Overflow Damage 32 | . . . . 32 Projectiles 32 | . . . . 32 Explosions . | . . . . . Melee . | . . . . . Knockbacks . | . . . . . Impact . | . . . . . Kinetic . | . . . . . Secondary . | . . . . . Self-Inflicted Damage . | . . . . . Shots . | . . . . . Rammed . | . . . . . Targets Rammed . | . . . . . Kicked . | . . . . . Crushed . | . . . . . Highest Temperature 131 | . 20 . . 131 Average Temperature 55 | . 12 . . 60 Received Heat Transfer . | . . . . . Siege Activations . | . . . . . Martial Activations . | . . . . . Shielding Activations . | . . . . . Robots Disrupted . | . . . . . Combat Hostiles . | . . . . . Robots Corrupted . | . . . . . Combat Hostiles . | . . . . . Parts Fried . | . . . . . Impact Corruptions . | . . . . . Robots Melted . | . . . . . Combat Hostiles . | . . . . . Parts Melted 1 | . . . . 1 Heat Transferred 518 | . . . . 518 Parts Sabotaged . | . . . . . Parts Stolen . | . . . . . Parts Stripped . | . . . . . Power Chain Reactions . | . . . . . Alert | -11 -10 -10 -9 -6 ------- Run | Yrd Mat Sub Scr Fac Maximum Alert Level . | . . . . . Low Security (%) 100 | 100 100 . . 100 Level 1 . | . . . . . Level 2 . | . . . . . Level 3 . | . . . . . Level 4 . | . . . . . Level 5 . | . . . . . High Security . | . . . . . Max Security . | . . . . . Peak Influence 41 | . 15 . . 41 Initial . | . . . . . Average 2 | . . . . 6 Influence Increases 222 | . 18 . . 204 Destroy 0b10 Robot/C 140 | . . . . 140 Destroy 0b10 Robot/NC 5 | . . . . 5 Destroy Leader 30 | . . . . 30 Allied During Kill 3 | . . . . 3 Successful Hack 9 | . 3 . . 6 Disable Machine 15 | . 15 . . . Destroy Structure 5 | . . . . 5 Lose Combat Pursuer 15 | . . . . 15 Influence Decreases 212 | . 18 . . 194 Time Decay 65 | . 18 . . 47 Lost Part 120 | . . . . 120 Lost Ally 27 | . . . . 27 Squads Dispatched 3 | . 1 . . 2 Investigation 1 | . 1 . . . Extermination . | . . . . . Reinforcement 1 | . . . . 1 Assault . | . . . . . Garrison 1 | . . . . 1 Intercept . | . . . . . Searches Triggered . | . . . . . Construction Impeded . | . . . . . Haulers Reinforced . | . . . . . Active Scanning Responses . | . . . . . Cargo Convoy Interrupts . | . . . . . Stealth | -11 -10 -10 -9 -6 --------- Run | Yrd Mat Sub Scr Fac Distress Signals 1 | . . . . 1 Communications Jammed . | . . . . . Distress Signals . | . . . . . Times Spotted 24 | . 5 . . 19 Peak Tracking Total 8 | . 3 . . 8 Tactical Retreats 1 | . . . . 1 Traps | -11 -10 -10 -9 -6 ------- Run | Yrd Mat Sub Scr Fac Traps Triggered . | . . . . . Indirectly . | . . . . . Trap Hack Attempts . | . . . . . Triggered . | . . . . . Disarmed . | . . . . . Reprogrammed . | . . . . . Reused . | . . . . . Traps Extracted . | . . . . . Installed . | . . . . . Triggered . | . . . . . Machines | -11 -10 -10 -9 -6 ---------- Run | Yrd Mat Sub Scr Fac Machines Disabled 1 | . 1 . . . Max in Single Turn 1 | . 1 . . . Machines Repaired . | . . . . . Machines Dismantled . | . . . . . Machines Sabotaged . | . . . . . Overloaded Fab Kills . | . . . . . Hacking | -11 -10 -10 -9 -6 --------- Run | Yrd Mat Sub Scr Fac Machines Accessed 4 | . 2 . 1 1 Terminals 3 | . 2 . . 1 Fabricators . | . . . . . Repair Stations . | . . . . . Recycling Units . | . . . . . Scanalyzers . | . . . . . Garrison Access . | . . . . . Total Hacks 6 | . 3 . 1 2 Successful 4 | . 2 . 1 1 Failed 2 | . 1 . . 1 Catastrophic . | . . . . . Database Lockouts . | . . . . . Manual 5 | . 3 . . 2 Terminals 5 | . 3 . . 2 Fabricators . | . . . . . Repair Stations . | . . . . . Recycling Units . | . . . . . Scanalyzers . | . . . . . Garrison Access . | . . . . . Terminal Hacks 1 | . . . 1 . Record 1 | . . . 1 . Fabricator Hacks . | . . . . . Repair Station Hacks . | . . . . . Recycling Unit Hacks . | . . . . . Scanalyzer . | . . . . . Garrison Access Hacks . | . . . . . Unauthorized Hacks 3 | . 2 . . 1 Terminals 3 | . 2 . . 1 Track 2 | . 2 . . . Assimilate 1 | . . . . 1 Fabricators . | . . . . . Repair Stations . | . . . . . Recycling Units . | . . . . . Scanalyzers . | . . . . . Garrison Access . | . . . . . Data Cores Recovered 1 | . 1 . . . Used . | . . . . . Hacking Detections 1 | . 1 . . . Full Trace Events . | . . . . . Feedback Events . | . . . . . Feedback Blocked . | . . . . . Robot Schematics Acquired . | . . . . . Robots Built . | . . . . . Authchips . | . . . . . Time . | . . . . . Total Robot Build Rating . | . . . . . Part Schematics Acquired . | . . . . . Parts Built . | . . . . . Authchips . | . . . . . Time . | . . . . . Total Part Build Rating . | . . . . . Parts Repaired . | . . . . . Time . | . . . . . Parts Recycled . | . . . . . Recycled Matter . | . . . . . Retrieved Matter . | . . . . . Retrieved Components . | . . . . . Parts Scanalyzed . | . . . . . Part Schematics Acquired . | . . . . . Parts Damaged . | . . . . . Bothacking | -11 -10 -10 -9 -6 ------------ Run | Yrd Mat Sub Scr Fac Used RIF Installer . | . . . . . Robots Hacked . | . . . . . Non-combat . | . . . . . Combat . | . . . . . Robot Hacks Applied . | . . . . . Relay Couplers Released . | . . . . . Fabnet Peak Effective % . | . . . . . Robots Rewired 1 | . . . . 1 Allies Hacked . | . . . . . Hacks Repelled . | . . . . . Allies | -11 -10 -10 -9 -6 -------- Run | Yrd Mat Sub Scr Fac Total Allies 2 | . . . . 2 Largest Group 2 | . . . . 2 Highest-Rated Group 42 | . . . . 42 Highest-Rated Ally 32 | . . . . 32 Total Orders . | . . . . . Ally Attacks 3 | . . . . 3 Total Damage 131 | . . . . 131 Kills 2 | . . . . 2 Allies Corrupted . | . . . . . Allies Melted . | . . . . . Intel | -11 -10 -10 -9 -6 ------- Run | Yrd Mat Sub Scr Fac Active Infowar (turns) 309 | . . . 125 184 Sensors 162 | . . . . 162 Terrain 57 | . . . . 57 Traps 105 | . . . . 105 Decoding 309 | . . . 125 184 Robot Analysis Total . | . . . . . Derelict Logs Recovered . | . . . . . Drone Launches . | . . . . . Drone Recoveries . | . . . . . Decoded 0b10 Intel 4 | . . . . 4 Emergency Access 3 | . . . . 3 Garrisons 1 | . . . . 1 Exploration | -11 -10 -10 -9 -6 ------------- Run | Yrd Mat Sub Scr Fac Turns Passed 1254 | 76 420 284 251 223 Spaces Moved 952 | 53 358 194 247 100 Core 11 | 1 . . . 10 Treads . | . . . . . Legs 2 | . . . . 2 Wheels 939 | 52 358 194 247 88 Hover . | . . . . . Flight . | . . . . . Fastest Speed 50 | 50 100 100 100 100 Average Speed 101 | 99 100 100 100 118 Slowest Speed 500 | 100 100 100 100 500 Overloaded Moves . | . . . . . Propulsion Burnouts . | . . . . . Robots Hopped . | . . . . . Potential Cave-ins . | . . . . . Cave-ins Triggered . | . . . . . Exploration Rate (%) 21 | 3 50 21 30 4 Regions Visited 4 Branch Regions 2 Pre-discovered Areas . | . . . . . Known Exits Taken 2 | . 1 1 . . Unknown Exits Taken 2 | 1 . . 1 . Scrap Searched . | . . . . . Spaces Dug . | . . . . . Terrain Destroyed 5 | . . . . 5 Melee . | . . . . . Projectile 5 | . . . . 5 AOE . | . . . . . Terrain Rammed . | . . . . . Walls Destroyed . | . . . . . Machines Disabled . | . . . . . Actions | -11 -10 -10 -9 -6 --------- Run | Yrd Mat Sub Scr Fac Total 1187 | 73 414 284 252 164 Wait 146 | 13 31 91 . 11 Move 948 | 52 357 193 246 100 Hop . | . . . . . Pick Up 21 | 2 12 . 2 5 Fast Attach 19 | 6 1 . 1 11 Attach 11 | . . . . 11 Detach 2 | . . . 1 1 Swap 3 | . 3 . . . Drop 11 | . 7 . 2 2 Fire 23 | . 3 . . 20 Melee . | . . . . . Ram . | . . . . . Kick . | . . . . . Crush . | . . . . . Escape Stasis . | . . . . . Rewire 3 | . . . . 3 Trap . | . . . . . Miscellaneous . | . . . . . Route ------- -11/Scrapyard -10/Materials (discovered 3 exits: *Mat / *Min / *Sub) -10/Subcaves -9/Scraptown -6/Factory History --------- Turn | Location | Event 18 | -11/Scrapyard | Discovered new exit (range 15) 77 | -11/Scrapyard | Entered Materials 78 | -10/Materials | Met a group of wandering Federalists 192 | -10/Materials | Discovered new exit (range 15) 235 | -10/Materials | Identified exit to Mines 301 | -10/Materials | Discovered new exit (range 16) 324 | -10/Materials | Identified exit to Materials 335 | -10/Materials | Build established: Mutant 472 | -10/Materials | Discovered new exit (range 8) 496 | -10/Materials | Identified exit to Subcaves 497 | -10/Materials | Entered Subcaves 498 | -10/Subcaves | Continued accompanying wandering Federalists (2) 498 | -10/Subcaves | Approached by a straggling Scientist 712 | -10/Subcaves | Shifting Twisted Machinery released Sub. Laser 716 | -10/Subcaves | Shifting Twisted Machinery released Flamer 735 | -10/Subcaves | Wandering Federalist uncovered a shortcut to Scraptown 747 | -10/Subcaves | Identified exit to Scraptown 781 | -10/Subcaves | Entered Scraptown 839 | -9/Scraptown | Visited UFD Registry 839 | -9/Scraptown | Registered with UFD as "Pyroguard" 894 | -9/Scraptown | Visited Infowarlord's Domain 935 | -9/Scraptown | Visited Scrapoid Pod Storage 968 | -9/Scraptown | Met Optimus 968 | -9/Scraptown | Accepted into 0bPrime 1027 | -9/Scraptown | Discovered new exit (range 3) 1032 | -9/Scraptown | Entered Factory 1032 | -6/Factory | Evolved 8 slots: Utility x8 1189 | -6/Factory | Garrison activated, responded to threat 1212 | -6/Factory | Core integrity fell below 50% 1243 | -6/Factory | Core integrity fell below 20% 1255 | -6/Factory | Destroyed by L-41 Fighter with Axe Last Messages --------------- Penetrated by Slug. K-01 Serf destroyed. Penetrated by Slug. R-10 Processor collects Terrain Scan Processor. K-01 Serf collects debris. Acquired Gauss Rifle. K-01 Serf collects debris. R-10 Processor collects Wheel. Slug penetrates L-41 Fighter. H-66 Slayer suffers critical hit (Destroy). H-66 Slayer destroyed. System corrupted: Substantial component data lost. Gauss Rifle severed. K-01 Serf collects debris. Acquired 67 matter. Penetrated by Slug. Imp. Heat Sink destroyed. K-01 Serf collects debris. R-10 Processor collects Lgt. Fission Core. Acquired 37 matter. Map ----- +----------------------------------------------------+ | ?????????????????????????????????????????????????? | | ?????????????????????????????????????????????????? | | ?????????????????????????????????????????????????? | | ?????????????????????????????????????????????????? | | ?????????????????????????????????????????????????? | | ?????????????????????????????????????????????????? | | ?????????????????????????????????????????????????? | | ?????????????????????????????????????????????????? | | ?????????????????????????????????????????????????? | | ??????????????????????????????+??????????????????? | | ?????????????????????????????????????????????????? | | ???????????????????##????????????????????????????? | | ?????????????????????? ??? ???# ? ??????????????? | | ?????????????? ??? ?? ?? ??????????????????????? | | ??????????????? ?????" " "???#????? ???????????? | | ??????????????#?##? ??" ? " ???????#?? ??????????? | | ????????????? ??????" " ? " "??#?#?? ???????????? | | ????????????????#?? " " " " "??#?????????????????? | | ???????????? ????#? " " " " ???#???? ????????????? | | ??????????? ? ??+ " " " " ???????#?? ??????????? | | ???????? ??????#? " " " "??????????????????????? | | ???????# ? ???#?? " " " "?????????????#????????? | | ???????? ???#???? " " ? ??#?? ?? ????????????? | | ???????#?# ?????? ? = ? ???? ?????? ???????? | | ?????????# ###########+####### % #?????????????? | | ?????????# @=%u% ??????? | | ?????????# k sl%%#####+###???#?????????? | | ?????????# hbk ###????? ? #??????????? | | ?????????# =!k%mR###????? ?? ?????????? | | ????#??### *%s! #?#?????? ????????????? | | ?????????# ####s###????? ?????"???????? | | ?#??#?#??# # ??????????? ?????????? | | ?????????# # """ """ ?#??????#??????????? | | ??????#??# # "G" """ ??? ???? ??????????? | | ?????#???# # " " """ #??? ?? ??????????? | | ???#????## # ##? ??????????????? | | ?##??#???###### ####+####?#??????????????????? | | ????????#?##??# #?? ??? ?#? ???????????????? | | ???#???######## #?"????""??#? ? ?????????????? | | ???#???# #???????? ##?????????????????? | | ????? # #??"????"?##?????????????????? | | ???????# """" #???? ? ????????????????????? | | ?????? # """" # ??? ?????????????????????? | | ???????# """" #???? ????#?????????????????? | | ??"?"??# """" # ?? ???????????????????????? | | ?????? # """" ###+######???????????????????? | | ????? ?# """" ^ ???????????????????? | | ?#??"??# ^ ???????????????????? | | ????"??# ^ ???????????????????? | | ????"??+ ^ ??????????????????? | +----------------------------------------------------+ Best States ------------- Heat Dissipation 51 Energy Generation 18 Energy Capacity 290 Matter Stores 300 Matter Capacity 300 Sight Range 16 Robot Scan Range 14 Terrain Scan Range 16 Terrain Scan Density 110 Evasion (%) 40 Targeting Accuracy 5 Item Schematics ----------------- None Robot Schematics ------------------ None Fabricated ------------ Nothing Repaired ---------- Nothing Alien Tech Used ----------------- None Achievements -------------- Omniscient Cartographer Challenges ------------ None Game ------ Seed MasterWardroneShredder Manual? 0 Play Time 00:18:31 Cumulative 74.1 hours Start 2025.07.14 @ 08:48:00 End 2025.07.14 @ 09:05:04 Sessions 1 Manual Loads 0 Difficulty Rogue Special Mode None Game No. 65 Rogue 62 Adventurer 1 Explorer 2 Win Type - Total 0 Types 0/0/0/0/0/0/0/0/0/0 Lore% 23 Gallery% 42 Achievement% 34 Wizard Run 0 Options --------- Layout 0 ASCII 0 Keyboard 0 Movement Mouse Keybinds 0 Fullscreen 2 Font 24/Smallcaps Map View 76x50 Zoom Use 0% Tactical HUD 0 Map Filters NONE Filters NONE Steam 1 RUN: fd30056c-8d8f-4d9a-b988-bb2c96279d9d